fUSD/lending_fUSD_20250607
["ID","MTS","AMOUNT","RATE_DAILY","PERIOD"]
[364848482,1749274252988,-480.0,0.00027397,5]
[364848483,1749274252997,-486.46714598,0.00027397,5]
[364848484,1749274253008,-151.0,0.00027397,7]
[364848485,1749274253018,-489.21583851,0.00027397,5]
[364848486,1749274253027,-151.0,0.00027397,7]
[364848487,1749274253037,-151.0,0.00027397,7]
[364848488,1749274253047,-480.0,0.00027397,5]
[364848489,1749274253059,-483.02628075,0.00027397,5]
[364848490,1749274253069,-151.0,0.00027397,7]
[364848491,1749274253079,-480.0,0.00027397,5]
[364848492,1749274253090,-151.0,0.00027397,7]
[364848493,1749274253100,-151.0,0.00027397,7]
[364848494,1749274253110,-480.0,0.00027397,5]
[364848495,1749274253119,-480.0,0.00027397,5]
[364848496,1749274253129,-151.0,0.00027397,7]
[364848497,1749274253139,-151.0,0.00027397,7]
[364848498,1749274253148,-151.0,0.00027397,7]
[364848499,1749274253158,-151.0,0.00027397,7]
[364848500,1749274253167,-151.0,0.00027397,7]
[364848501,1749274253176,-151.0,0.00027397,7]
[364848502,1749274253185,-250.0,0.00027397,5]
[364848503,1749274253195,-480.0,0.00027397,5]
[364848504,1749274253204,-426.52207562,0.00027397,5]
[364848505,1749274253214,-480.0,0.00027397,5]
[364848506,1749274253223,-480.0,0.00027397,5]
[364848507,1749274253233,-480.0,0.00027397,5]
[364848508,1749274253243,-465.68785977,0.00027397,5]
[364848509,1749274253252,-495.54814177,0.00027397,5]
[364848510,1749274253262,-468.17028589,0.00027397,5]
[364848511,1749274253272,-480.0,0.00027397,5]
[364848512,1749274253282,-480.0,0.00027397,5]
[364848513,1749274253291,-494.65579468,0.00027397,5]
[364848514,1749274253301,-496.54,0.00027397,5]
[364848515,1749274253311,-480.0,0.00027397,5]
[364848516,1749274253321,-480.0,0.00027397,5]
[364848517,1749274253330,-497.98438443,0.00027397,5]
[364848518,1749274253339,-480.0,0.00027397,5]
[364848519,1749274253349,-480.0,0.00027397,5]
[364848520,1749274253359,-480.0,0.00027397,5]
[364848521,1749274253369,-483.88069244,0.00027397,5]
[364848522,1749274253380,-491.02158031,0.00027397,5]
[364848523,1749274253389,-448.56609639,0.00027397,5]
[364848524,1749274253398,-480.0,0.00027397,5]
[364848525,1749274253408,-520.28120671,0.00027397,5]
[364848526,1749274253418,-486.64735643,0.00027397,5]
[364848527,1749274253427,-480.0,0.00027397,5]
[364848528,1749274253436,-427.33262794,0.00027397,5]
[364848529,1749274253446,-480.0,0.00027397,5]
[364848530,1749274253455,-480.0,0.00027397,5]
[364848531,1749274253465,-488.86804027,0.00027397,5]
[364848532,1749274253474,-552.99500692,0.00027397,5]
[364848533,1749274253483,-480.0,0.00027397,5]
[364848534,1749274253493,-502.9651328,0.00027397,5]
[364848535,1749274253502,-495.79627939,0.00027397,5]
[364848536,1749274253511,-480.0,0.00027397,5]
[364848537,1749274253521,-480.0,0.00027397,5]
[364848538,1749274253530,-493.8228521,0.00027397,5]
[364848539,1749274253539,-499.93502283,0.00027397,5]
[364848540,1749274253549,-151.0,0.00027397,7]
[364848541,1749274253558,-151.0,0.00027397,7]
[364848542,1749274253568,-151.0,0.00027397,7]
[364848543,1749274253578,-480.0,0.00027397,5]
[364848544,1749274253591,-480.0,0.00027397,5]
[364848545,1749274253600,-501.35379227,0.00027397,5]
[364848546,1749274253609,-480.0,0.00027397,5]
[364848547,1749274253619,-480.0,0.00027397,5]
[364848548,1749274253629,-285.01789484,0.00027397,5]
[364848549,1749274253638,-346.74172017,0.00027397,5]
[364848550,1749274253647,-497.33998453,0.00027397,5]
[364848551,1749274253659,-480.0,0.00027397,5]
[364848552,1749274253668,-483.18649482,0.00027397,5]
[364848553,1749274253678,-480.0,0.00027397,5]
[364848554,1749274253688,-480.0,0.00027397,5]
[364848555,1749274253698,-480.0,0.00027397,5]
[364848556,1749274253708,-480.0,0.00027397,5]
[364848557,1749274253718,-358.76453364,0.00027397,5]
[364848558,1749274253728,-151.0,0.00027397,7]
[364848559,1749274253737,-151.0,0.00027397,7]
[364848560,1749274253746,-151.0,0.00027397,7]
[364848561,1749274253757,-480.0,0.00027397,5]
[364848562,1749274253768,-151.0,0.00027397,7]
[364848563,1749274253778,-480.0,0.00027397,5]
[364848564,1749274253789,-492.47751052,0.00027397,5]
[364848565,1749274253798,-488.4897653,0.00027397,5]
[364848566,1749274253807,-421.92403671,0.00027397,5]
[364848567,1749274253817,-480.0,0.00027397,5]
[364848568,1749274253827,-151.0,0.00027397,7]
[364848569,1749274253838,-151.0,0.00027397,7]
[364848570,1749274253848,-151.0,0.00027397,7]
[364848571,1749274253857,-514.18406807,0.00027397,5]
[364848572,1749274253868,-151.0,0.00027397,7]
[364848573,1749274253877,-151.0,0.00027397,7]
[364848574,1749274253886,-261.759666,0.00027397,7]
[364848575,1749274253895,-151.0,0.00027397,7]
[364848576,1749274253906,-151.0,0.00027397,7]
[364848577,1749274253915,-496.48103612,0.00027397,5]
[364848578,1749274253925,-151.0,0.00027397,7]
[364848579,1749274253934,-496.28120796,0.00027397,5]
[364848580,1749274253949,-504.6627337,0.00027397,5]
[364848581,1749274253959,-151.0,0.00027397,7]
[364848582,1749274253969,-962.074668,0.00027397,7]
[364848583,1749274253978,-962.074668,0.00027397,7]
[364848584,1749274253988,-508.07734909,0.00027397,5]
[364848585,1749274253997,-962.074668,0.00027397,7]
[364848586,1749274254007,-480.0,0.00027397,5]
[364848587,1749274254016,-294.554657,0.00027397,7]
[364848588,1749274254026,-294.554657,0.00027397,7]
[364848589,1749274254035,-496.9125914,0.00027397,5]
[364848590,1749274254045,-294.554657,0.00027397,7]
[364848591,1749274254055,-962.074668,0.00027397,7]
[364848592,1749274254065,-962.074668,0.00027397,7]
[364848593,1749274254075,-962.074668,0.00027397,7]
[364848594,1749274254084,-516.22989476,0.00027397,5]
[364848595,1749274254095,-502.25290532,0.00027397,5]
[364848596,1749274254106,-498.96611695,0.00027397,5]
[364848597,1749274254115,-294.554657,0.00027397,7]
[364848598,1749274254124,-294.554657,0.00027397,7]
[364848599,1749274254133,-294.554657,0.00027397,7]
[364848600,1749274254143,-302.98574352,0.00027397,5]
[364848601,1749274254153,-516.95631481,0.00027397,5]
[364848602,1749274254162,-480.0,0.00027397,5]
[364848603,1749274254172,-480.0,0.00027397,5]
[364848604,1749274254182,-151.0,0.00027397,7]
[364848605,1749274254191,-151.0,0.00027397,7]
[364848606,1749274254201,-480.0,0.00027397,5]
[364848607,1749274254211,-480.61834349,0.00027397,5]
[364848608,1749274254220,-151.0,0.00027397,7]
[364848609,1749274254230,-151.0,0.00027397,7]
[364848610,1749274254240,-151.0,0.00027397,7]
[364848611,1749274254249,-151.0,0.00027397,7]
[364848612,1749274254259,-151.0,0.00027397,7]
[364848613,1749274254269,-491.68519499,0.00027397,5]
[364848614,1749274254279,-480.0,0.00027397,5]
[364848615,1749274254289,-486.76359595,0.00027397,5]
[364848616,1749274254299,-480.0,0.00027397,5]
[364848617,1749274254308,-499.74979819,0.00027397,5]
[364848618,1749274254318,-151.0,0.00027397,7]
[364848619,1749274254327,-155.208437,0.00027397,7]
[364848620,1749274254337,-533.28332078,0.00027397,5]
[364848621,1749274254346,-480.0,0.00027397,5]
[364848622,1749274254355,-480.0,0.00027397,5]
[364848623,1749274254365,-482.35146621,0.00027397,5]
[364848624,1749274254374,-480.0,0.00027397,5]
[364848625,1749274254384,-480.0,0.00027397,5]
[364848626,1749274254393,-480.0,0.00027397,5]
[364848627,1749274254403,-480.0,0.00027397,5]
[364848628,1749274254416,-480.0,0.00027397,5]
[364848629,1749274254425,-480.0,0.00027397,5]
[364848630,1749274254434,-480.0,0.00027397,5]
[364848631,1749274254443,-1030.373222,0.00027397,7]
[364848632,1749274254453,-1030.373222,0.00027397,7]
[364848633,1749274254462,-1030.373222,0.00027397,7]
[364848634,1749274254471,-477.36890142,0.00027397,5]
[364848635,1749274254481,-480.0,0.00027397,5]
[364848636,1749274254491,-480.0,0.00027397,5]
[364848637,1749274254500,-478.32592417,0.00027397,5]
[364848638,1749274254510,-1030.373222,0.00027397,7]
[364848639,1749274254520,-1030.373222,0.00027397,7]
[364848640,1749274254529,-1030.373222,0.00027397,7]
[364848641,1749274254538,-500.0,0.00027397,2]
[364848642,1749274254547,-500.0,0.00027397,2]
[364848643,1749274254557,-500.0,0.00027397,2]
[364848644,1749274254567,-500.0,0.00027397,2]
[364848645,1749274254578,-500.0,0.00027397,2]
[364848646,1749274254592,-500.0,0.00027397,2]
[364848647,1749274254602,-500.0,0.00027397,2]
[364848648,1749274254611,-480.0,0.00027397,5]
[364848649,1749274254621,-500.0,0.00027397,2]
[364848650,1749274254631,-502.64900214,0.00027397,2]
[364848651,1749274254640,-480.0,0.00027397,5]
[364848652,1749274254649,-500.0,0.00027397,5]
[364848653,1749274254659,-500.0,0.00027397,5]
[364848654,1749274254668,-500.0,0.00027397,5]
[364848655,1749274254677,-500.0,0.00027397,5]
[364848656,1749274254687,-500.0,0.00027397,5]
[364848657,1749274254696,-504.98593338,0.00027397,5]
[364848658,1749274254705,-484.40155999,0.00027397,5]
[364848659,1749274254714,-480.0,0.00027397,5]
[364848660,1749274254723,-1017.00083755,0.00027397,5]
[364848661,1749274254733,-500.01491436,0.00027397,5]
[364848662,1749274254741,-480.0,0.00027397,5]
[364848663,1749274254751,-501.16294386,0.00027397,5]
[364848664,1749274254760,-488.61625459,0.00027397,5]
[364848665,1749274254770,-491.67404145,0.00027397,5]
[364848666,1749274254779,-500.0,0.00027397,5]
[364848667,1749274254789,-500.0,0.00027397,5]
[364848668,1749274254798,-505.58,0.00027397,5]
[364848669,1749274254807,-500.0,0.00027397,5]
[364848670,1749274254817,-500.0,0.00027397,5]
[364848671,1749274254828,-180.27429648,0.00027397,5]
[364848672,1749274254837,-480.0,0.00027397,5]
[364848673,1749274254847,-487.93759293,0.00027397,5]
[364848674,1749274254857,-1310.956622,0.00027397,7]
[364848675,1749274254867,-1310.956622,0.00027397,7]
[364848676,1749274254877,-1310.956622,0.00027397,7]
[364848677,1749274254887,-499.96805543,0.00027397,5]
[364848678,1749274254897,-1310.956622,0.00027397,7]
[364848679,1749274254908,-1310.956622,0.00027397,7]
[364848680,1749274254917,-1310.956622,0.00027397,7]
[364848681,1749274254927,-491.5708486,0.00027397,5]
[364848682,1749274254937,-480.0,0.00027397,5]
[364848683,1749274254947,-480.0,0.00027397,5]
[364848684,1749274254956,-151.0,0.00027397,7]
[364848685,1749274254966,-151.0,0.00027397,7]
[364848686,1749274254976,-480.0,0.00027397,5]
[364848687,1749274254986,-151.0,0.00027397,7]
[364848688,1749274254995,-480.0,0.00027397,5]
[364848689,1749274255004,-492.93793836,0.00027397,5]
[364848690,1749274255014,-489.68581883,0.00027397,5]
[364848691,1749274255024,-486.13879497,0.00027397,5]
[364848692,1749274255034,-484.70254304,0.00027397,5]
[364848693,1749274255044,-483.65729563,0.00027397,5]
[364848694,1749274255054,-205.49714,0.00027397,7]
[364848695,1749274255064,-205.49714,0.00027397,7]
[364848696,1749274255074,-205.49714,0.00027397,7]
[364848697,1749274255084,-205.49714,0.00027397,7]
[364848698,1749274255094,-480.0,0.00027397,5]
[364848699,1749274255103,-205.49714,0.00027397,7]
[364848700,1749274255113,-205.49714,0.00027397,7]
[364848701,1749274255124,-495.27479184,0.00027397,5]
[364848702,1749274255134,-205.49714,0.00027397,7]
[364848703,1749274255143,-205.49714,0.00027397,7]
[364848704,1749274255154,-480.0,0.00027397,5]
[364848705,1749274255163,-151.0,0.00027397,7]
[364848706,1749274255173,-197.335924,0.00027397,7]
[364848707,1749274255184,-480.0,0.00027397,5]
[364848708,1749274255195,-480.0,0.00027397,5]
[364848709,1749274255205,-316.849758,0.00027397,7]
[364848710,1749274255215,-316.849758,0.00027397,7]
[364848711,1749274255225,-316.849758,0.00027397,7]
[364848712,1749274255235,-316.849758,0.00027397,7]
[364848713,1749274255245,-480.0,0.00027397,5]
[364848714,1749274255255,-316.849758,0.00027397,7]
[364848715,1749274255265,-316.849758,0.00027397,7]
[364848716,1749274255275,-316.849758,0.00027397,7]
[364848717,1749274255285,-316.849758,0.00027397,7]
[364848718,1749274255295,-480.0,0.00027397,5]
[364848719,1749274255305,-493.54052618,0.00027397,5]
[364848720,1749274255316,-480.0,0.00027397,5]
[364848721,1749274255326,-505.28717574,0.00027397,5]
[364848722,1749274255336,-480.0,0.00027397,5]
[364848723,1749274255346,-508.9064521,0.00027397,5]
[364848724,1749274255356,-480.0,0.00027397,5]
[364848725,1749274255366,-505.36083968,0.00027397,5]
[364848726,1749274255376,-480.0,0.00027397,5]
[364848727,1749274255387,-480.0,0.00027397,5]
[364848728,1749274255396,-480.0,0.00027397,5]
[364848729,1749274255407,-480.0,0.00027397,5]
[364848730,1749274255417,-480.0,0.00027397,5]
[364848731,1749274255427,-494.95686996,0.00027397,5]
[364848732,1749274255437,-480.0,0.00027397,5]
[364848733,1749274255447,-482.43779893,0.00027397,5]
[364848734,1749274255456,-480.0,0.00027397,5]
[364848735,1749274255466,-480.0,0.00027397,5]
[364848736,1749274255476,-509.8,0.00027397,5]
[364848737,1749274255485,-480.0,0.00027397,5]
[364848738,1749274255495,-480.0,0.00027397,5]
[364848739,1749274255505,-480.0,0.00027397,5]
[364848740,1749274255514,-480.0,0.00027397,5]
[364848741,1749274255524,-480.0,0.00027397,5]
[364848742,1749274255534,-173.567389,0.00027397,7]
[364848743,1749274255544,-151.0,0.00027397,7]
[364848744,1749274255553,-173.567389,0.00027397,7]
[364848745,1749274255563,-151.0,0.00027397,7]
[364848746,1749274255575,-173.567389,0.00027397,7]
[364848747,1749274255587,-151.0,0.00027397,7]
[364848748,1749274255598,-173.567389,0.00027397,7]
[364848749,1749274255608,-151.0,0.00027397,7]
[364848750,1749274255619,-480.0,0.00027397,5]
[364848751,1749274255631,-173.567389,0.00027397,7]
[364848752,1749274255642,-173.567389,0.00027397,7]
[364848753,1749274255654,-173.567389,0.00027397,7]
[364848754,1749274255665,-173.567389,0.00027397,7]
[364848755,1749274255676,-480.0,0.00027397,5]
[364848756,1749274255685,-480.0,0.00027397,5]
[364848757,1749274255696,-480.0,0.00027397,5]
[364848758,1749274255706,-1954.69,0.00027397,5]
[364848759,1749274255716,-480.0,0.00027397,5]
[364848760,1749274255727,-474.83599662,0.00027397,5]
[364848761,1749274255740,-480.0,0.00027397,5]
[364848762,1749274255751,-480.0,0.00027397,5]
[364848763,1749274255761,-170.184927,0.00027397,7]
[364848764,1749274255771,-170.184927,0.00027397,7]
[364848765,1749274255781,-170.184927,0.00027397,7]
[364848766,1749274255792,-1563.367253,0.00027397,7]
[364848767,1749274255802,-170.184927,0.00027397,7]
[364848768,1749274255813,-1563.367253,0.00027397,7]
[364848769,1749274255823,-1563.367253,0.00027397,7]
[364848770,1749274255835,-483.0926414,0.00027397,5]
[364848771,1749274255845,-360.0,0.00027397,5]
[364848772,1749274255856,-170.184927,0.00027397,7]
[364848773,1749274255867,-480.0,0.00027397,5]
[364848774,1749274255877,-1563.367253,0.00027397,7]
[364848775,1749274255888,-170.184927,0.00027397,7]
[364848776,1749274255898,-496.77805165,0.00027397,5]
[364848777,1749274255909,-1563.367253,0.00027397,7]
[364848778,1749274255919,-170.184927,0.00027397,7]
[364848779,1749274255929,-170.184927,0.00027397,7]
[364848780,1749274255939,-1563.367253,0.00027397,7]
[364848781,1749274255949,-480.0,0.00027397,5]
[364848782,1749274255960,-505.40257588,0.00027397,5]
[364848783,1749274255971,-480.0,0.00027397,5]
[364848784,1749274255982,-469.52122212,0.00027397,5]
[364848785,1749274255992,-480.0,0.00027397,5]
[364848786,1749274256002,-498.04423124,0.00027397,5]
[364848787,1749274256012,-151.0,0.00027397,7]
[364848788,1749274256023,-151.0,0.00027397,7]
[364848789,1749274256035,-151.0,0.00027397,7]
[364848790,1749274256046,-151.0,0.00027397,7]
[364848791,1749274256056,-480.0,0.00027397,5]
[364848792,1749274256066,-480.0,0.00027397,5]
[364848793,1749274256076,-502.66103318,0.00027397,5]
[364848794,1749274256086,-487.73958389,0.00027397,5]
[364848795,1749274256096,-480.0,0.00027397,5]
[364848796,1749274256106,-480.0,0.00027397,5]
[364848797,1749274256116,-509.47112471,0.00027397,5]
[364848798,1749274256126,-480.0,0.00027397,5]
[364848799,1749274256136,-480.0,0.00027397,5]
[364848800,1749274256146,-618.47,0.00027397,5]
[364848801,1749274256156,-610.98,0.00027397,5]
[364848802,1749274256166,-480.0,0.00027397,5]
[364848803,1749274256176,-480.0,0.00027397,5]
[364848804,1749274256186,-480.0,0.00027397,5]
[364848805,1749274256196,-480.0,0.00027397,5]
[364848806,1749274256206,-480.0,0.00027397,5]
[364848807,1749274256217,-480.0,0.00027397,5]
[364848808,1749274256227,-466.81533169,0.00027397,5]
[364848809,1749274256237,-480.0,0.00027397,5]
[364848810,1749274256247,-480.0,0.00027397,5]
[364848811,1749274256257,-480.0,0.00027397,5]
[364848812,1749274256267,-480.0,0.00027397,5]
[364848813,1749274256277,-480.0,0.00027397,5]
[364848814,1749274256287,-280.992215,0.00027397,7]
[364848815,1749274256297,-280.992215,0.00027397,7]
[364848816,1749274256307,-280.992215,0.00027397,7]
[364848817,1749274256317,-534.07,0.00027397,5]
[364848818,1749274256326,-480.0,0.00027397,5]
[364848819,1749274256337,-486.16993969,0.00027397,5]
[364848820,1749274256346,-480.0,0.00027397,5]
[364848821,1749274256356,-280.992215,0.00027397,7]
[364848822,1749274256366,-280.992215,0.00027397,7]
[364848823,1749274256376,-280.992215,0.00027397,7]
[364848824,1749274256386,-1163.74,0.00027397,5]
[364848825,1749274256396,-480.0,0.00027397,5]
[364848826,1749274256405,-480.0,0.00027397,5]
[364848827,1749274256415,-480.0,0.00027397,5]
[364848828,1749274256425,-480.0,0.00027397,5]
[364848829,1749274256435,-480.0,0.00027397,5]
[364848830,1749274256445,-216.293326,0.00027397,7]
[364848831,1749274256454,-216.293326,0.00027397,7]
[364848832,1749274256464,-480.0,0.00027397,2]
[364848833,1749274256474,-216.293326,0.00027397,7]
[364848834,1749274256484,-480.0,0.00027397,5]
[364848835,1749274256493,-1423.16,0.00027397,5]
[364848836,1749274256504,-480.0,0.00027397,5]
[364848837,1749274256514,-807.84,0.00027397,5]
[364848838,1749274256524,-216.293326,0.00027397,7]
[364848839,1749274256533,-216.293326,0.00027397,7]
[364848840,1749274256543,-480.0,0.00027397,5]
[364848841,1749274256553,-216.293326,0.00027397,7]
[364848842,1749274256563,-480.0,0.00027397,5]
[364848843,1749274256573,-480.0,0.00027397,5]
[364848844,1749274256584,-480.0,0.00027397,5]
[364848845,1749274256596,-480.0,0.00027397,5]
[364848846,1749274256605,-722.49,0.00027397,5]
[364848847,1749274256615,-658.07,0.00027397,5]
[364848848,1749274256624,-480.0,0.00027397,5]
[364848849,1749274256634,-480.0,0.00027397,5]
[364848850,1749274256644,-484.33104382,0.00027397,5]
[364848851,1749274256654,-480.0,0.00027397,5]
[364848852,1749274256666,-490.8626679,0.00027397,5]
[364848853,1749274256678,-480.0,0.00027397,5]
[364848854,1749274256687,-480.0,0.00027397,5]
[364848855,1749274256698,-624.11,0.00027397,5]
[364848856,1749274256708,-1030.91,0.00027397,5]
[364848857,1749274256717,-794.82,0.00027397,2]
[364848858,1749274256727,-794.82,0.00027397,2]
[364848859,1749274256737,-794.82,0.00027397,2]
[364848860,1749274256747,-794.82,0.00027397,2]
[364848861,1749274256756,-794.82,0.00027397,2]
[364848862,1749274256766,-794.82,0.00027397,2]
[364848863,1749274256776,-794.82,0.00027397,2]
[364848864,1749274256785,-794.82,0.00027397,2]
[364848865,1749274256795,-794.82,0.00027397,2]
[364848866,1749274256805,-794.82,0.00027397,2]
[364848867,1749274256815,-794.82,0.00027397,2]
[364848868,1749274256826,-794.82,0.00027397,2]
[364848869,1749274256836,-480.0,0.00027397,5]
[364848870,1749274256846,-1046.98,0.00027397,5]
[364848871,1749274256856,-488.42832724,0.00027397,5]
[364848872,1749274256866,-5000.0,0.00027397,2]
[364848873,1749274256875,-5000.0,0.00027397,3]
[364848874,1749274256885,-480.0,0.00027397,5]
[364848875,1749274256896,-4396.03790704,0.00027397,4]
[364848876,1749274256907,-151.0,0.00027397,7]
[364848877,1749274256917,-2000.0,0.00027397,5]
[364848878,1749274256926,-151.0,0.00027397,7]
[364848879,1749274256936,-165.510456,0.00027397,7]
[364848880,1749274256946,-172.32450229,0.00027397,5]
[364848881,1749274256956,-480.0,0.00027397,5]
[364848882,1749274256967,-151.0,0.00027397,7]
[364848883,1749274256977,-480.0,0.00027397,5]
[364848884,1749274256987,-151.0,0.00027397,7]
[364848885,1749274256997,-151.0,0.00027397,7]
[364848886,1749274257007,-151.0,0.00027397,7]
[364848887,1749274257017,-480.0,0.00027397,5]
[364848888,1749274257028,-151.0,0.00027397,7]
[364848889,1749274257038,-151.0,0.00027397,7]
[364848890,1749274257322,-151.0,0.00027397,7]
[364848891,1749274257332,-151.0,0.00027397,7]
[364848892,1749274257344,-480.0,0.00027397,5]
[364848893,1749274257355,-480.0,0.00027397,5]
[364848894,1749274257364,-477.12670696,0.00027397,5]
[364848895,1749274257374,-982.439498,0.00027397,7]
[364848896,1749274257384,-151.0,0.00027397,7]
[364848897,1749274257393,-982.439498,0.00027397,7]
[364848898,1749274257403,-204.630289,0.00027397,7]
[364848899,1749274257413,-982.439498,0.00027397,7]
[364848900,1749274257424,-982.439498,0.00027397,7]
[364848901,1749274257434,-1137.84,0.00027397,5]
[364848902,1749274257444,-1026.76,0.00027397,5]
[364848903,1749274257454,-480.0,0.00027397,5]
[364848904,1749274257465,-882.53,0.00027397,5]
[364848905,1749274257475,-480.0,0.00027397,5]
[364848906,1749274257486,-982.439498,0.00027397,7]
[364848907,1749274257496,-982.439498,0.00027397,7]
[364848908,1749274257507,-495.78,0.00027397,5]
[364848909,1749274257517,-982.439498,0.00027397,7]
[364848910,1749274257526,-982.439498,0.00027397,7]
[364848911,1749274257537,-150.0,0.00027397,7]
[364848912,1749274257546,-480.0,0.00027397,5]
[364848913,1749274257556,-480.0,0.00027397,5]
[364848914,1749274257566,-150.0,0.00027397,7]
[364848915,1749274257576,-492.2470995,0.00027397,5]
[364848916,1749274257589,-480.0,0.00027397,5]
[364848917,1749274257598,-480.0,0.00027397,5]
[364848918,1749274257608,-480.0,0.00027397,5]
[364848919,1749274257618,-480.0,0.00027397,5]
[364848920,1749274257630,-736.64,0.00027397,5]
[364848921,1749274257639,-480.0,0.00027397,5]
[364848922,1749274257649,-1833.26369,0.00027397,7]
[364848923,1749274257661,-1323.94,0.00027397,5]
[364848924,1749274257672,-480.0,0.00027397,5]
[364848925,1749274257681,-1833.26369,0.00027397,7]
[364848926,1749274257691,-1833.26369,0.00027397,7]
[364848927,1749274257700,-391.51288326,0.00027397,5]
[364848928,1749274257710,-480.0,0.00027397,5]
[364848929,1749274257720,-1833.26369,0.00027397,7]
[364848930,1749274257730,-480.0,0.00027397,5]
[364848931,1749274257739,-1833.26369,0.00027397,7]
[364848932,1749274257749,-1833.26369,0.00027397,7]
[364848933,1749274257759,-1833.26369,0.00027397,7]
[364848934,1749274257768,-480.0,0.00027397,5]
[364848935,1749274257778,-696.89,0.00027397,5]
[364848936,1749274257787,-480.0,0.00027397,5]
[364848937,1749274257797,-573.4,0.00027397,5]
[364848938,1749274257807,-480.0,0.00027397,5]
[364848939,1749274257816,-480.0,0.00027397,5]
[364848940,1749274257826,-480.0,0.00027397,5]
[364848941,1749274257836,-480.0,0.00027397,5]
[364848942,1749274257845,-480.0,0.00027397,5]
[364848943,1749274257855,-480.0,0.00027397,5]
[364848944,1749274257865,-179.340194,0.00027397,7]
[364848945,1749274257874,-179.340194,0.00027397,7]
[364848946,1749274257883,-500.0,0.00027397,5]
[364848947,1749274257893,-179.340194,0.00027397,7]
[364848948,1749274257902,-500.0,0.00027397,5]
[364848949,1749274257913,-480.0,0.00027397,5]
[364848950,1749274257922,-500.0,0.00027397,5]
[364848951,1749274257932,-515.22003817,0.00027397,5]
[364848952,1749274257941,-903.48,0.00027397,5]
[364848953,1749274257951,-480.0,0.00027397,5]
[364848954,1749274257960,-480.0,0.00027397,5]
[364848955,1749274257970,-179.340194,0.00027397,7]
[364848956,1749274257979,-460.00088065,0.00027397,5]
[364848957,1749274257989,-179.340194,0.00027397,7]
[364848958,1749274257999,-480.0,0.00027397,5]
[364848959,1749274258009,-179.340194,0.00027397,7]
[364848960,1749274258019,-480.0,0.00027397,5]
[364848961,1749274258029,-482.56222229,0.00027397,5]
[364848962,1749274258038,-480.0,0.00027397,5]
[364848963,1749274258049,-480.0,0.00027397,5]
[364848964,1749274258059,-151.0,0.00027397,7]
[364848965,1749274258069,-480.0,0.00027397,5]
[364848966,1749274258081,-151.0,0.00027397,7]
[364848967,1749274258091,-151.0,0.00027397,7]
[364848968,1749274258101,-151.0,0.00027397,7]
[364848969,1749274258111,-151.0,0.00027397,7]
[364848970,1749274258122,-151.0,0.00027397,7]
[364848971,1749274258132,-491.9551073,0.00027397,5]
[364848972,1749274258141,-151.0,0.00027397,7]
[364848973,1749274258152,-713.0,0.00027397,5]
[364848974,1749274258162,-151.0,0.00027397,7]
[364848975,1749274258172,-480.0,0.00027397,5]
[364848976,1749274258182,-536.21952107,0.00027397,5]
[364848977,1749274258192,-492.26232599,0.00027397,5]
[364848978,1749274258202,-480.0,0.00027397,5]
[364848979,1749274258212,-151.0,0.00027397,7]
[364848980,1749274258222,-480.0,0.00027397,5]
[364848981,1749274258233,-151.0,0.00027397,7]